bitfinex/quotes_SOLUSD_20250418
["timestamp","ask_amount","ask_price","bid_price","bid_amount"]
[1744970411657,32.10492838,134.54,134.5,1e-08]
[1744970412171,6.09036024,134.53,134.5,1e-08]
[1744970412888,32.10492838,134.54,134.5,1e-08]
[1744970415665,69.26859717,134.54,134.5,1e-08]
[1744970416485,6.09036024,134.52,134.5,1e-08]
[1744970418378,7.43439149,134.51,134.5,1e-08]
[1744970423277,13.52475173,134.51,134.5,1e-08]
[1744970427180,7.43439149,134.51,134.5,1e-08]
[1744970434295,13.52475173,134.51,134.5,1e-08]
[1744970435289,13.52475173,134.51,134.49,1e-08]
[1744970435469,6.09036024,134.5,134.49,1e-08]
[1744970437279,13.52475173,134.51,134.49,1e-08]
[1744970438275,13.52475173,134.51,134.49,6.09036025]
[1744970438276,7.43439149,134.51,134.49,6.09036025]
[1744970440011,26.01910716,134.52,134.49,6.09036025]
[1744970440179,26.01910716,134.52,134.49,1e-08]
[1744970443401,32.1094674,134.52,134.49,1e-08]
[1744970448309,18.58526833,134.52,134.49,1e-08]
[1744970449210,6.09036024,134.5,134.48,1e-08]
[1744970449384,6.09036024,134.49,134.48,1e-08]
[1744970450305,7.43549706,134.49,134.48,1e-08]
[1744970451293,13.5258573,134.49,134.48,1e-08]
[1744970452211,13.52530447,134.5,134.48,1e-08]
[1744970459022,7.43494423,134.5,134.48,6.09036025]
[1744970459195,7.43494423,134.5,134.49,6.09036024]
[1744970460795,18.58526833,134.52,134.49,6.09036024]
[1744970461020,18.58526833,134.52,134.5,6.09036024]
[1744970462703,7.43328625,134.53,134.51,6.09036024]
[1744970462898,7.43328625,134.53,134.52,6.23252181]
[1744970463103,7.43188308,134.56,134.52,32.23252181]
[1744970463305,7.43188308,134.56,134.54,6.09036024]
[1744970464398,7.43188308,134.56,134.55,6.09036024]
[1744970464603,0.063,134.57,134.55,6.09036024]
[1744970464812,0.063,134.57,134.56,6.23252181]
[1744970474225,0.063,134.57,134.56,6.09036024]
[1744970474537,0.063,134.57,134.55,46.61036024]
[1744970474924,0.063,134.57,134.56,6.09036024]
[1744970476840,0.063,134.57,134.56,6.23252181]
[1744970489528,0.063,134.57,134.56,6.09036024]
[1744970489837,0.063,134.57,134.55,46.61036024]
[1744970493947,0.063,134.57,134.56,6.23252181]
[1744970500426,6.15336024,134.57,134.49,266.06]
[1744970500734,6.15336024,134.57,134.51,6.09036024]
[1744970500735,6.09036024,134.56,134.51,6.09036024]
[1744970500942,6.09036024,134.54,134.49,252.15036024]
[1744970501141,6.09036024,134.53,134.49,246.06]
[1744970501543,26.01843591,134.52,134.49,14.5]
[1744970502129,26.01843591,134.52,134.49,20.59036024]
[1744970502446,26.01843591,134.52,134.5,6.09036024]
[1744970503049,26.01843591,134.52,134.49,20.59036024]
[1744970504553,18.58459708,134.52,134.49,20.59036024]
[1744970506634,18.58459708,134.52,134.5,6.09036024]
[1744970509349,7.43328625,134.53,134.51,6.09036024]
[1744970509937,7.43328625,134.53,134.51,0.14216157]
[1744970510656,26.01650188,134.53,134.49,14.5]
[1744970510865,26.01650188,134.53,134.5,6.23252181]
[1744970512475,18.58321563,134.53,134.5,6.23252181]
[1744970512865,18.58321563,134.53,134.51,6.09036024]
[1744970513062,7.43273375,134.54,134.52,0.14216157]
[1744970513438,7.43273375,134.54,134.52,6.23252181]
[1744970514366,26.01184386,134.56,134.52,6.23252181]
[1744970514737,26.01184386,134.56,134.53,6.09036024]
[1744970514938,26.01184386,134.56,134.55,6.23252181]
[1744970514939,7.43162901,134.56,134.55,6.23252181]
[1744970516664,0.063,134.57,134.56,0.14216157]
[1744970516871,0.063,134.57,134.56,6.23252181]
[1744970518553,0.063,134.58,134.56,70.88217067]
[1744970518856,0.063,134.58,134.57,6.23252181]
[1744970527983,0.063,134.58,134.54,34.5]
[1744970528179,0.063,134.58,134.56,6.09036024]
[1744970528381,0.063,134.58,134.57,0.14216157]
[1744970528956,0.063,134.58,134.56,6.09036024]
[1744970529171,0.063,134.58,134.57,6.09036024]
[1744970529592,0.063,134.58,134.57,6.23252181]
[1744970532180,0.063,134.58,134.57,32.23252181]
[1744970534772,0.063,134.6,134.59,26.0]
[1744970534958,0.063,134.6,134.59,46.73252181]
[1744970537783,0.063,134.6,134.54,123.41029071]
[1744970537784,0.063,134.6,134.52,20.0]
[1744970538083,6.15336024,134.6,134.55,6.09036024]
[1744970538877,6.09036024,134.59,134.55,6.09036024]
[1744970539076,26.00683607,134.58,134.55,6.09036024]
[1744970540278,6.15336024,134.6,134.55,6.09036024]
[1744970541589,26.00490377,134.59,134.55,6.09036024]
[1744970541784,26.00490377,134.59,134.56,6.09036024]
[1744970542290,26.00490377,134.59,134.55,6.09036024]
[1744970542593,32.09526401,134.59,134.55,6.09036024]
[1744970542891,18.57493127,134.59,134.55,6.09036024]
[1744970543690,18.57493127,134.59,134.53,0.14216157]
[1744970543892,18.57493127,134.59,134.55,6.09036024]
[1744970544193,26.00490377,134.59,134.55,6.09036024]
[1744970544388,26.00490377,134.59,134.53,0.14216157]
[1744970544687,26.00490377,134.59,134.55,6.09036024]
[1744970547771,26.00490377,134.59,134.56,6.09036024]
[1744970550193,26.00490377,134.59,134.55,6.09036024]
[1744970550901,32.09526401,134.59,134.55,6.09036024]
[1744970551110,6.09036024,134.58,134.53,6.23252181]
[1744970551301,6.09036024,134.57,134.52,46.62036024]
[1744970551481,6.09036024,134.57,134.53,6.09036024]
[1744970551680,6.09036024,134.58,134.53,6.09036024]
[1744970551882,26.00876866,134.57,134.53,6.09036024]
[1744970552287,69.25451271,134.57,134.52,20.62036024]
[1744970553019,69.25451271,134.57,134.52,14.53]
[1744970553020,6.09036024,134.55,134.52,14.53]
[1744970553506,6.09036024,134.54,134.51,0.03]
[1744970553694,6.09036024,134.55,134.51,6.12036024]
[1744970554101,26.01456814,134.54,134.51,6.12036024]
[1744970555079,26.01456814,134.54,134.52,6.09036024]
[1744970555307,26.01456814,134.54,134.53,6.09036024]
[1744970556012,26.01070154,134.56,134.53,6.09036024]
[1744970556696,32.10106178,134.56,134.52,6.09036024]
[1744970556898,6.09036024,134.55,134.51,6.12036024]
[1744970557294,69.25920684,134.56,134.51,6.12036024]
[1744970562322,26.01070154,134.56,134.53,6.09036024]
[1744970562817,32.10106178,134.56,134.52,6.09036024]
[1744970565022,18.57907253,134.56,134.52,6.09036024]
[1744970565719,18.57907253,134.56,134.51,0.03]
[1744970565720,6.09036024,134.55,134.51,0.03]
[1744970566414,24.66943277,134.56,134.51,6.12036024]
[1744970567314,6.09036024,134.55,134.51,6.12036024]
[1744970567713,6.09036024,134.52,134.51,1e-08]
[1744970568028,6.37468338,134.52,134.5,1e-08]
[1744970568209,6.09036024,134.51,134.5,1e-08]
[1744970569221,13.52475173,134.51,134.5,1e-08]
[1744970569526,13.80907487,134.51,134.5,1e-08]
[1744970573226,32.45872373,134.51,134.5,1e-08]
[1744970575234,32.45872373,134.51,134.48,1e-08]
[1744970575235,0.28432314,134.49,134.48,1e-08]
[1744970575437,13.81018044,134.49,134.48,1e-08]
[1744970577310,6.09036024,134.47,134.46,1e-08]
[1744970579339,13.81128633,134.47,134.46,1e-08]
[1744970580637,32.40279372,134.47,134.44,0.03]
[1744970580940,32.40279372,134.47,134.43,0.03]
[1744970580941,6.09036024,134.45,134.43,0.03]
[1744970581124,6.09036024,134.44,134.42,1e-08]
[1744970582031,6.09036024,134.43,134.42,1e-08]
[1744970582822,13.52917598,134.43,134.42,1e-08]
[1744970583038,13.81349912,134.43,134.42,1e-08]
[1744970583338,18.933972,134.42,134.39,1e-08]
[1744970583513,6.09036024,134.4,134.39,1e-08]
[1744970583712,6.09036024,134.4,134.38,1e-08]
[1744970583937,6.09036024,134.39,134.38,1e-08]
[1744970584722,25.02433224,134.39,134.38,1e-08]
[1744970584918,32.46536207,134.39,134.38,1e-08]
[1744970586744,0.28432314,134.38,134.32,0.03]
[1744970586931,6.09036024,134.35,134.32,0.03]
[1744970587944,6.09036024,134.36,134.32,0.03]
[1744970588132,0.28432314,134.38,134.32,6.12036024]
[1744970588133,6.09036024,134.37,134.32,6.12036024]
[1744970588314,26.04941946,134.36,134.32,6.12036024]
[1744970588718,7.44269127,134.36,134.34,6.09036024]
[1744970588918,7.44269127,134.36,134.35,6.23252181]
[1744970589730,18.64964886,134.42,134.35,6.23252181]
[1744970589731,7.43715603,134.46,134.36,38.79181043]
[1744970589918,6.09036024,134.45,134.4,6.09036024]
[1744970590327,26.03391847,134.44,134.4,6.09036024]
[1744970590926,32.12427871,134.44,134.4,6.09036024]
[1744970591126,35.56983837,134.44,134.4,9.5359199]
[1744970591340,26.03391847,134.44,134.41,9.5359199]
[1744970591644,26.03391847,134.44,134.39,0.14216157]
[1744970591645,26.03391847,134.44,134.4,9.5359199]
[1744970592049,26.03391847,134.44,134.42,9.5359199]
[1744970592250,7.43826242,134.44,134.42,9.5359199]
[1744970592419,18.59313016,134.46,134.43,9.5359199]
[1744970593333,18.59313016,134.46,134.42,14.52]
[1744970593334,28.12905006,134.46,134.42,14.52]
[1744970593549,9.5359199,134.44,134.42,14.52]
[1744970593723,0.28432314,134.45,134.42,14.52]
[1744970593929,9.82024304,134.45,134.42,14.52]
[1744970594452,7.43826242,134.44,134.42,14.52]
[1744970595947,72.76115047,134.44,134.37,26.0]
[1744970596241,9.5359199,134.38,134.33,14.52]
[1744970596560,35.58340073,134.37,134.33,14.52]
[1744970596850,9.5359199,134.36,134.33,14.52]
[1744970597142,9.5359199,134.35,134.32,0.03]
[1744970597342,9.5359199,134.36,134.32,0.03]
[1744970597639,9.5359199,134.36,134.32,9.5659199]
[1744970598035,26.04748083,134.37,134.34,9.5359199]
[1744970599044,26.04748083,134.37,134.35,9.5359199]
[1744970599738,26.04748083,134.37,134.34,9.5359199]
[1744970600518,26.04748083,134.37,134.35,9.5359199]
[1744970600719,18.60534345,134.37,134.34,9.5359199]
[1744970600917,7.44158356,134.38,134.36,9.5359199]
[1744970601152,46.727232,134.44,134.37,9.67808147]
[1744970601350,26.03585509,134.43,134.4,9.5359199]
[1744970602343,18.59703935,134.43,134.4,9.5359199]
[1744970603626,28.13295925,134.43,134.37,0.14216157]
[1744970603826,28.13295925,134.43,134.39,9.5359199]
[1744970604346,28.13295925,134.43,134.37,0.14216157]
[1744970604556,9.5359199,134.41,134.37,9.5359199]
[1744970604850,9.5359199,134.4,134.36,9.5359199]
[1744970605348,9.5359199,134.41,134.36,9.5359199]
[1744970605926,26.04166666,134.4,134.37,9.5359199]
[1744970610060,26.04166666,134.4,134.36,9.67808147]
[1744970611752,26.04166666,134.4,134.37,9.5359199]
[1744970611959,7.44047619,134.4,134.39,9.67808147]
[1744970612357,26.04166666,134.4,134.38,9.5359199]
[1744970613055,26.04166666,134.4,134.39,9.5359199]
[1744970613632,26.04166666,134.4,134.38,9.5359199]
[1744970613833,26.03779199,134.42,134.38,9.5359199]
[1744970614033,26.03779199,134.42,134.39,9.5359199]
[1744970614337,26.03779199,134.42,134.38,9.5359199]
[1744970615364,72.77055759,134.42,134.37,9.67808147]
[1744970615959,9.5359199,134.41,134.37,0.14216157]
[1744970616158,63.23463769,134.42,134.37,9.67808147]
[1744970616159,72.77055759,134.42,134.37,9.67808147]
[1744970616664,63.23463769,134.42,134.37,9.67808147]
[1744970621863,63.23463769,134.42,134.37,0.14216157]
[1744970622161,63.23463769,134.42,134.35,24.0559199]
[1744970622162,9.5359199,134.41,134.35,24.0559199]
[1744970622366,9.5359199,134.41,134.36,0.14216157]
[1744970622751,9.5359199,134.41,134.36,9.67808147]
[1744970622958,72.77055759,134.42,134.36,9.67808147]
[1744970625579,63.23463769,134.42,134.37,9.5359199]
[1744970626040,9.5359199,134.41,134.36,9.67808147]
[1744970626236,63.23463769,134.42,134.36,9.67808147]
[1744970626455,72.77055759,134.42,134.36,9.67808147]
[1744970628141,72.77055759,134.42,134.37,9.5359199]
[1744970628339,26.03779199,134.42,134.38,9.5359199]
[1744970628955,35.57371189,134.42,134.37,9.5359199]
[1744970629150,35.57371189,134.42,134.36,9.67808147]
[1744970629560,26.03779199,134.42,134.37,9.5359199]
[1744970631267,28.13434275,134.42,134.37,9.5359199]
[1744970631468,9.5359199,134.4,134.36,0.14216157]
[1744970631645,9.5359199,134.41,134.36,0.14216157]
[1744970632668,9.5359199,134.41,134.36,9.67808147]
[1744970632869,28.13434275,134.42,134.36,9.67808147]
[1744970633370,35.57371189,134.42,134.36,9.67808147]
[1744970633671,26.03779199,134.42,134.37,9.5359199]
[1744970634145,26.03779199,134.42,134.37,24.1359199]
[1744970634342,26.03779199,134.42,134.38,9.67808147]
[1744970635061,35.57371189,134.42,134.37,24.1359199]
[1744970635369,26.03779199,134.42,134.38,9.5359199]
[1744970636367,26.03779199,134.42,134.4,9.5359199]
[1744970636571,26.03779199,134.42,134.41,9.5359199]
[1744970636770,26.03779199,134.42,134.39,9.67808147]
[1744970637072,26.03779199,134.42,134.38,9.5359199]
[1744970638349,26.03779199,134.42,134.39,9.5359199]
[1744970639762,18.59842285,134.42,134.39,9.5359199]
[1744970641176,69.32934356,134.44,134.39,6.10315781]
[1744970642081,69.32934356,134.44,134.37,14.74216157]
[1744970642381,6.10315781,134.42,134.37,20.70315781]
[1744970643281,26.03779199,134.42,134.37,20.70315781]
[1744970643464,32.1409498,134.42,134.37,20.70315781]
[1744970644384,6.10315781,134.41,134.37,14.6]
[1744970645599,7.44047619,134.4,134.37,14.6]
[1744970645761,7.44047619,134.4,134.37,20.70315781]
[1744970646062,7.44047619,134.4,134.38,6.10315781]
[1744970646480,7.44047619,134.4,134.37,20.70315781]
[1744970647085,7.44047619,134.4,134.38,6.10315781]
[1744970647261,7.44047619,134.4,134.37,20.70315781]
[1744970648281,26.03779199,134.42,134.37,20.70315781]
[1744970648482,26.03779199,134.42,134.38,6.10315781]
[1744970648870,32.1409498,134.42,134.37,20.70315781]
[1744970649070,6.10315781,134.41,134.37,14.6]
[1744970649274,6.10315781,134.4,134.37,14.6]
[1744970649481,6.10315781,134.41,134.37,14.6]
[1744970650287,26.04166666,134.4,134.37,14.6]
[1744970650790,6.10315781,134.39,134.37,14.6]
[1744970650993,32.14482447,134.4,134.37,14.6]
[1744970651889,6.10315781,134.39,134.37,14.6]
[1744970652379,26.04554248,134.38,134.34,32.24531938]
[1744970652585,26.04554248,134.38,134.33,14.6]
[1744970652586,6.10315781,134.37,134.33,14.6]
[1744970652784,6.10315781,134.36,134.33,14.6]
[1744970653801,26.04554248,134.38,134.33,14.6]
[1744970653802,6.10315781,134.37,134.33,14.6]
[1744970654176,6.10315781,134.36,134.33,14.6]
[1744970654374,7.44324525,134.35,134.33,14.6]
[1744970654578,6.10315781,134.34,134.32,0.03]
[1744970655004,32.15451619,134.35,134.32,0.03]
[1744970656289,6.10315781,134.34,134.32,0.03]
[1744970656803,6.10315781,134.33,134.32,0.03]
[1744970657476,6.38748095,134.33,134.32,1e-08]
[1744970657810,6.38748095,134.33,134.28,14.6]
[1744970657998,6.10315781,134.29,134.27,0.03]
[1744970658302,7.4471254,134.28,134.27,0.03]
[1744970660283,26.06163235,134.3,134.27,0.03]
[1744970660696,26.06163235,134.3,134.27,9.58690331]
[1744970660898,26.06163235,134.3,134.28,9.55690331]
[1744970661203,7.44601638,134.3,134.29,9.69906488]
[1744970661390,7.44601638,134.3,134.29,9.55690331]
[1744970661788,7.44571671,134.31,134.29,9.69906488]
[1744970661998,7.44571671,134.31,134.3,9.55690331]
[1744970662304,26.05345081,134.34,134.3,9.55690331]
[1744970662478,26.05345081,134.34,134.31,9.55690331]
[1744970663609,7.44379931,134.34,134.31,9.55690331]
[1744970664286,7.44379931,134.34,134.33,9.55690331]
[1744970664510,18.60685013,134.36,134.33,9.55690331]
[1744970665927,7.44269127,134.36,134.34,9.55690331]
[1744970666298,7.44269127,134.36,134.33,9.55690331]
[1744970666720,26.04941946,134.36,134.32,9.69906488]
[1744970667400,35.60632277,134.36,134.31,9.55690331]
[1744970667607,35.60632277,134.36,134.32,9.55690331]
[1744970667809,9.55690331,134.37,134.32,9.55690331]
[1744970668006,9.55690331,134.38,134.33,9.55690331]
[1744970668307,9.55690331,134.37,134.33,9.55690331]
[1744970668613,9.55690331,134.37,134.32,9.55690331]
[1744970669219,7.44269127,134.36,134.32,9.55690331]
[1744970670531,7.44269127,134.36,134.31,0.14216157]
[1744970670731,26.04941946,134.36,134.32,9.55690331]
[1744970670901,26.04941946,134.36,134.33,9.55690331]
[1744970672843,18.60672819,134.36,134.33,9.55690331]
[1744970673054,28.1636315,134.36,134.31,9.69906488]
[1744970673340,9.55690331,134.35,134.31,9.55690331]
[1744970673843,9.55690331,134.35,134.3,9.55690331]
[1744970675141,26.05329759,134.34,134.31,9.55690331]
[1744970681161,26.05329759,134.34,134.31,6.11105428]
[1744970681756,7.44379931,134.34,134.32,6.11105428]
[1744970685045,26.04980854,134.36,134.32,6.11105428]
[1744970685734,32.16086282,134.36,134.32,6.11105428]
[1744970686526,32.16086282,134.36,134.31,6.11105428]
[1744970692664,26.04980854,134.36,134.33,6.11105428]
[1744970693561,26.04980854,134.36,134.32,6.11105428]
[1744970696634,26.04980854,134.36,134.3,0.14216157]
[1744970696842,26.04980854,134.36,134.32,6.11105428]
[1744970697162,26.04980854,134.36,134.3,0.14216157]
[1744970697339,26.04980854,134.36,134.32,6.11105428]
[1744970698069,6.11105428,134.34,134.29,26.0]
[1744970698240,6.11105428,134.34,134.3,6.11105428]
[1744970699469,26.05523709,134.33,134.3,6.11105428]
[1744970700252,26.05523709,134.33,134.31,6.11105428]
[1744970701548,26.05135838,134.35,134.31,6.11105428]
[1744970703862,26.05135838,134.35,134.32,6.11105428]
[1744970705278,26.05135838,134.35,134.29,26.0]
[1744970705579,26.05135838,134.35,134.32,6.11105428]
[1744970705956,18.60811313,134.35,134.32,6.11105428]
[1744970707874,18.60811313,134.35,134.31,6.11105428]
[1744970708063,26.05135838,134.35,134.31,6.11105428]
[1744970713073,32.16241266,134.35,134.3,20.69105428]
[1744970713959,26.0,134.38,134.3,20.69105428]
[1744970713960,6.11105428,134.36,134.3,20.69105428]
[1744970714376,6.11105428,134.35,134.3,20.69105428]
[1744970715276,6.11105428,134.35,134.3,14.58]
[1744970715481,69.36922201,134.37,134.31,6.11105428]
[1744970716271,69.36922201,134.37,134.32,6.11105428]
[1744970716880,6.11105428,134.36,134.31,6.11105428]
[1744970717585,32.15853511,134.37,134.32,6.11105428]
[1744970717883,26.04748083,134.37,134.33,6.11105428]
[1744970720465,26.04748083,134.37,134.34,6.11105428]
[1744970720665,26.04748083,134.37,134.35,6.11105428]
[1744970721350,26.04748083,134.37,134.34,6.11105428]
[1744970721583,37.20583723,134.39,134.34,6.11105428]
[1744970721883,43.31689151,134.39,134.34,6.11105428]
[1744970723971,69.36049593,134.39,134.35,6.11105428]
[1744970724177,63.24944165,134.39,134.35,6.11105428]
[1744970724466,69.36049593,134.39,134.34,6.11105428]
[1744970725187,63.24944165,134.39,134.34,6.11105428]
[1744970726086,6.11105428,134.38,134.33,6.11105428]
[1744970727483,6.11105428,134.38,134.3,14.72216157]
[1744970727484,6.11105428,134.37,134.32,6.11105428]
[1744970728087,26.04941946,134.36,134.32,6.11105428]
[1744970728693,69.37393012,134.36,134.31,6.11105428]
[1744970728872,26.04941946,134.36,134.33,6.11105428]
[1744970730070,18.60672819,134.36,134.33,6.11105428]
[1744970737281,18.60672819,134.36,134.32,6.11105428]
[1744970739208,24.71778247,134.36,134.31,6.11105428]
[1744970739585,32.16047374,134.36,134.31,6.11105428]
[1744970740109,6.11105428,134.35,134.3,14.58]
[1744970740408,6.11105428,134.35,134.3,6.11105428]
[1744970740710,0.28432314,134.34,134.27,0.03]
[1744970740889,6.39537742,134.34,134.29,6.11105428]
[1744970741093,6.11105428,134.33,134.28,6.11105428]
[1744970741507,6.11105428,134.33,134.27,0.17216157]
[1744970741682,26.05717688,134.32,134.28,6.11105428]
[1744970741885,6.11105428,134.3,134.27,0.03]
[1744970742118,6.11105428,134.29,134.27,0.03]
[1744970743785,7.4471254,134.28,134.27,0.03]
[1744970743980,13.55817968,134.28,134.27,0.03]
[1744970744807,7.4471254,134.28,134.27,0.03]
[1744970745325,13.55817968,134.28,134.27,1e-08]
[1744970747283,13.84250282,134.28,134.27,1e-08]
[1744970755021,13.55817968,134.28,134.27,1e-08]
[1744970758321,13.84250282,134.28,134.27,1e-08]
[1744970760315,0.28432314,134.27,134.26,1e-08]
[1744970760519,6.11105428,134.27,134.26,1e-08]
[1744970760825,13.55817968,134.28,134.26,1e-08]
[1744970761222,7.4471254,134.28,134.26,1e-08]
[1744970761795,7.4471254,134.28,134.26,6.11105429]
[1744970762128,37.22244296,134.33,134.28,0.14216157]
[1744970762296,37.22244296,134.33,134.3,6.11105428]
[1744970764117,63.27768005,134.33,134.3,6.11105428]
[1744970765409,7.44435345,134.33,134.32,6.11105428]
[1744970765603,7.50705333,134.34,134.32,20.81321585]
[1744970765806,7.50705333,134.34,134.33,6.11105428]
[1744970766314,0.063,134.34,134.33,6.11105428]
[1744970766518,0.063,134.34,134.33,6.25321585]
[1744970767835,0.063,134.34,134.33,69.34708183]
[1744970768623,0.063,134.34,134.33,26.25321585]
[1744970770818,0.063,134.34,134.33,69.34708183]
[1744970772022,0.063,134.34,134.33,44.90286471]
[1744970772323,0.063,134.34,134.33,26.25321585]
[1744970772524,0.063,134.34,134.33,44.90286471]
[1744970775615,0.063,134.34,134.33,75.30256459]
[1744970776008,0.063,134.34,134.33,69.34708183]
[1744970776426,0.063,134.34,134.33,44.90286471]
[1744970778828,0.063,134.34,134.33,6.25321585]
[1744970781812,0.063,134.34,134.33,69.34708183]
[1744970782314,0.063,134.34,134.33,75.30256459]
[1744970787422,0.063,134.34,134.33,75.58688773]
[1744970789028,0.063,134.4,134.39,26.0]
[1744970789233,0.063,134.4,134.39,46.79321585]
[1744970790936,0.063,134.4,134.39,20.79321585]
[1744970791331,0.063,134.4,134.39,14.68216157]
[1744970791537,0.063,134.4,134.39,20.79321585]
[1744970792338,0.063,134.4,134.39,14.54]
[1744970793949,0.063,134.4,134.39,20.65105428]
[1744970794146,0.063,134.4,134.39,85.44286471]
[1744970794937,0.063,134.4,134.39,91.39568858]
[1744970795553,0.063,134.4,134.39,85.44286471]
[1744970796355,0.063,134.4,134.39,66.79321585]
[1744970796543,0.063,134.4,134.39,85.44286471]
[1744970797556,0.063,134.4,134.39,46.75105428]
[1744970797933,0.063,134.4,134.39,46.89321585]
[1744970798432,0.063,134.4,134.39,46.75105428]
[1744970798633,0.063,134.4,134.39,46.89321585]
[1744970808967,0.063,134.4,134.39,20.75105428]
[1744970809169,0.063,134.4,134.39,14.64]
[1744970809360,0.063,134.4,134.39,20.75105428]
[1744970809553,0.063,134.4,134.39,14.64]
[1744970809742,0.063,134.4,134.39,20.75105428]
[1744970811146,0.063,134.4,134.39,14.64]
[1744970811553,6.17405428,134.4,134.35,20.75105428]
[1744970811754,6.11105428,134.39,134.35,14.64]
[1744970812967,6.11105428,134.39,134.35,20.75105428]
[1744970813354,26.04554248,134.38,134.35,20.75105428]
[1744970819880,26.04554248,134.38,134.36,6.11105428]
[1744970820059,26.04554248,134.38,134.35,14.64]
[1744970820060,7.44158356,134.38,134.37,6.25321585]
[1744970821883,0.063,134.4,134.37,6.25321585]
[1744970822183,0.063,134.4,134.38,6.11105428]
[1744970823573,0.063,134.4,134.37,0.14216157]
[1744970823574,0.063,134.4,134.39,6.25321585]
[1744970823778,0.063,134.4,134.39,44.90286471]
[1744970823969,0.063,134.4,134.39,101.2999057]
[1744970824369,0.063,134.4,134.39,101.58422884]
[1744970824561,0.063,134.41,134.39,101.58422884]
[1744970824891,0.063,134.41,134.4,64.27140497]
[1744970825079,0.063,134.42,134.41,46.14216157]
[1744970825379,0.063,134.42,134.41,52.25321585]
[1744970828086,0.063,134.44,134.43,64.79181043]
[1744970828274,0.063,134.44,134.43,70.90286471]
[1744970831386,0.063,134.44,134.43,76.8539173]
[1744970832392,0.063,134.44,134.43,70.90286471]
[1744970832691,0.063,134.46,134.45,46.14216157]
[1744970832885,0.063,134.46,134.45,66.85321585]
[1744970841030,0.063,134.46,134.45,26.0]
[1744970841325,0.063,134.46,134.44,14.6]
[1744970842101,6.17405428,134.46,134.44,14.6]
[1744970842411,6.11105428,134.45,134.44,14.6]
[1744970843126,13.54876346,134.45,134.44,14.6]
[1744970843424,7.43770918,134.45,134.44,14.6]
[1744970847429,32.14303642,134.45,134.42,14.6]
[1744970847617,6.11105428,134.44,134.42,14.6]
[1744970848617,7.43881574,134.43,134.42,14.6]
[1744970849544,32.14690937,134.43,134.39,14.6]
[1744970849713,6.11105428,134.41,134.39,14.6]
[1744970850118,6.11105428,134.4,134.38,0.03]
[1744970850324,63.51425693,134.43,134.36,14.6]
[1744970850325,6.11105428,134.39,134.36,14.6]
[1744970850513,32.1546587,134.39,134.36,14.6]
[1744970850918,6.11105428,134.38,134.36,14.6]
[1744970852326,32.1546587,134.39,134.36,14.6]
[1744970853739,26.04360442,134.39,134.36,20.71105428]
[1744970855155,26.04360442,134.39,134.36,14.6]
[1744970866054,26.04360442,134.39,134.35,6.11105428]
[1744970867448,6.11105428,134.39,134.35,6.11105428]
[1744970868439,6.11105428,134.4,134.35,6.11105428]
[1744970868756,26.04360442,134.39,134.35,6.11105428]
[1744970870638,32.1546587,134.39,134.35,6.11105428]
[1744970873963,26.04360442,134.39,134.35,6.11105428]
[1744970876565,32.1546587,134.39,134.35,0.14216157]
[1744970878351,63.2393423,134.41,134.35,6.25321585]
[1744970878558,6.11105428,134.4,134.35,6.25321585]
[1744970878949,6.11105428,134.38,134.34,20.69105428]
[1744970879154,6.11105428,134.39,134.34,20.69105428]
[1744970879355,6.11105428,134.38,134.34,20.69105428]
[1744970879768,6.11105428,134.38,134.34,6.11105428]
[1744970879968,63.2393423,134.41,134.32,46.0]
[1744970879969,32.15853511,134.37,134.32,26.0]
[1744970880167,6.11105428,134.34,134.3,14.61]
[1744970880467,6.11105428,134.34,134.3,0.03]
[1744970880858,6.11105428,134.34,134.3,0.17216157]
[1744970881378,7.44435345,134.33,134.3,0.17216157]
[1744970882676,7.44435345,134.33,134.3,6.28321585]
[1744970884573,26.05434976,134.34,134.3,6.28321585]
[1744970888576,6.11105428,134.4,134.33,6.11105428]
[1744970888778,6.11105428,134.4,134.36,6.11105428]
[1744970889083,6.11105428,134.39,134.35,6.11105428]
[1744970889267,6.11105428,134.39,134.34,20.77321585]
[1744970889667,6.11105428,134.36,134.34,14.52]
[1744970889864,6.11105428,134.35,134.34,14.52]
[1744970890179,6.11105428,134.35,134.3,46.66105428]
[1744970890368,6.11105428,134.35,134.31,6.11105428]
[1744970890978,26.05329759,134.34,134.3,46.66105428]
[1744970891185,6.11105428,134.33,134.3,14.55]
[1744970891359,26.05329759,134.34,134.3,14.55]
[1744970891360,6.11105428,134.32,134.3,14.55]
[1744970891560,6.11105428,134.31,134.3,0.03]
[1744970891777,6.11105428,134.31,134.3,1e-08]